[Event "FIDE WCCC U10 2018"]
[Site "Santiago de Compostela"]
[Date "2018.11.13"]
[Round "9"]
[White "Milanovic, Marko"]
[Black "Uritsky, Yonathan"]
[Result "0-1"]
[ECO "B30"]
[WhiteElo "1803"]
[BlackElo "1902"]
[Annotator "NA RC"]
[PlyCount "118"]
[EventDate "2018.11.04"]
[EventType "swiss"]
[EventCountry "ESP"]
[SourceTitle "playchess.com"]
[Source "ChessBase"]
[SourceQuality "1"]
[TimeControl "40/5400+30:1800+30"]

{[%evp 10,117,39,32767,32767,32767,32767,32767,16,32767,32767,11,25,-13,0,-15,22,0,0,0,14,0,0,-2,36,15,17,0,0,0,0,0,0,32767,-8,32767,0,-52,32767,32767,32767,-6,-13,-7,0,-7,7,-8,0,32767,2,-37,-33,32767,-10,32767,-57,32767,-33,32767,32767,-46,-27,-37,-18,0,32767,32767,32767,32767,32767,32767,-72,-75,32767,-8,0,0,0,0,32767,0,0,-16,0,-4,-54,0,0,0,0,-61,0,-30,-25,-62,-51,-83,0,0,0,0,32767,32767,0,0,0,-191,-222,-29999]} 1. e4 {[%emt 0:00:00]} c5 {[%emt 0:00:00]} 2. Nf3 {[%emt 0:00:00]} Nc6 {[%emt 0:00:21]} 3. Bb5 {[%emt 0:00:06]} Nf6 {[%emt 0:00:38]} 4. Bxc6 {[%emt 0:00:22]} dxc6 {[%emt 0:00:14]} 5. d3 {[%emt 0:00:26]} g6 {[%emt 0:00:24]} 6. O-O {[%emt 0:00:42]} Bg7 {[%emt 0:00:21]} 7. Nc3 {[%emt 0:00:53]} O-O {[%emt 0:01:02]} 8. Be3 {[%emt 0:00:39]} b6 {[%emt 0:00:40]} 9. h3 {[%emt 0:02:13]} e5 {[%emt 0:03:57] B31: Sicilian: 2...Nc6 3 Bb5 g6} 10. a4 {[%emt 0:04:34] LiveBook: 3 Games} (10. a3 Qe7 11. Qb1 Nh5 12. b4 f5 13. bxc5 f4 14. Bd2 bxc5 15. Qb3+ Be6 {0-1 (39) Caruana,F (2820)-Carlsen,M (2862) Wijk aan Zee 2015 CBM 165 [Stohl,I]}) 10... Nd7 {[%emt 0:02:39]} 11. Nd2 {[%emt 0:07:22]} Re8 {[%emt 0:02:32]} 12. Nc4 $146 {[%emt 0:01:02]} ({Predecessor:} 12. a5 Rb8 13. Nc4 Qe7 14. axb6 axb6 15. Ra7 b5 16. Na5 {1-0 (56) Ziska,H (2450)-Tari,A (2216) Oslo 2012}) 12... Nf8 {[%emt 0:01:59]} 13. f4 {[%emt 0:14:05]} exf4 {[%emt 0:04:07]} 14. Bxf4 {[%emt 0:00:22]} Ne6 {[%emt 0:00:44]} 15. Bg3 {[%emt 0:05:08]} Nd4 {[%emt 0:03:52]} 16. Qd2 {[%emt 0:08:30]} Be6 {[%emt 0:03:24]} 17. Nd6 {[%emt 0:08:26]} Rf8 {[%emt 0:02:57]} 18. e5 {[%emt 0:00:56]} Nf5 {[%emt 0:02:09]} 19. Nxf5 {[%emt 0:00:34]} Bxf5 {[%emt 0:00:09]} 20. Rae1 {[%emt 0:05:19]} Re8 {[%emt 0:03:15]} 21. Kh1 {[%emt 0:03:43]} Qd4 {[%emt 0:03:34]} 22. Qf4 {[%emt 0:05:41]} Rad8 {[%emt 0:03:06]} 23. Bh2 {[%emt 0:04:16]} c4 {[%emt 0:31:46]} 24. g4 Be6 25. Re4 {[%emt 0:15:04]} Qc5 {[%emt 0:03:47]} 26. dxc4 {[%emt 0:02:03]} Qb4 {[%emt 0:01:27]} 27. Rb1 {[%emt 0:03:06]} Bc8 {[%emt 0:01:36]} 28. Bg3 {[%emt 0:01:41]} Bb7 {[%emt 0:01:26]} 29. Kh2 {[%emt 0:02:39]} c5 {[%emt 0:02:34]} 30. Re2 {[%emt 0:02:33]} (30. Nd5 $5 {[%cal Rd5b4]} Qxa4 31. b3 $15) 30... Rd4 {[%emt 0:00:52]} 31. Qf2 {[%emt 0:00:21]} Qxc4 {[%emt 0:01:21]} 32. Rf1 {[%emt 0:01:02]} Qe6 {[%emt 0:01:58]} 33. Nb5 {[%emt 0:01:02]} Rd7 {[%emt 0:00:50]} ({Reject} 33... Rxa4 $6 34. Nc7 $14) 34. Rfe1 {[%emt 0:01:03]} Ba6 {[%emt 0:02:04]} 35. Rd2 {[%emt 0:00:34]} Bxb5 {[%emt 0:01:26]} 36. axb5 {[%emt 0:00:01]} Rxd2 37. Qxd2 {[%emt 0:00:01]} Qc4 {[%emt 0:01:15]} 38. Qe2 {[%emt 0:01:38]} Qb4 {[%emt 0:02:04]} 39. c3 {[%emt 0:00:27]} Qb3 {[%emt 0:00:09]} 40. Ra1 {[%emt 0:00:52] [#]} Bxe5 $1 {[%emt 0:00:00]} 41. Bxe5 {[%emt 0:01:47]} f6 {[%emt 0:03:31]} 42. Rxa7 {[%emt 0:01:42]} Rxe5 {[%emt 0:02:22]} 43. Qg2 {[%emt 0:01:29]} Re8 {[%emt 0:04:32]} ({Don't go for} 43... Qxb5 $2 {[#]} 44. c4 $1 $18 {[%mdl 512]}) 44. Ra8 {[%emt 0:05:48]} Qxb5 {[%emt 0:01:22]} 45. Qd5+ {[%emt 0:01:24]} Kh8 {[%emt 0:00:34]} 46. Kg1 {[%emt 0:09:22]} Rxa8 {[%emt 0:06:30]} 47. Qxa8+ {[%emt 0:00:08]} Kg7 {[%emt 0:00:05]} 48. Qb7+ {[%emt 0:01:22]} Kg8 {[%emt 0:06:09]} 49. Qd5+ {[%emt 0:02:54]} Kf8 {[%emt 0:01:40]} 50. Qd8+ {[%emt 0:00:20]} ({White should try} 50. Qe6 $11) 50... Kf7 {[%emt 0:00:27]} 51. Qd5+ {[%emt 0:01:45]} Ke7 {[%emt 0:01:09]} 52. Qb7+ {[%emt 0:00:35]} Kd6 {[%emt 0:00:52]} 53. Qb8+ {[%emt 0:00:24]} Kd5 {[%emt 0:01:08]} 54. Qg8+ $1 {[%emt 0:01:31]} Ke5 {[%emt 0:01:36]} 55. Qxh7 {[%emt 0:01:31]} Qxb2 {[%emt 0:00:13]} 56. Qe7+ {[%emt 0:00:21]} Kf4 {[%emt 0:01:08]} 57. Qxf6+ {[%emt 0:04:09]} Kg3 {[%emt 0:01:20]} 58. Qd6+ $19 {[%emt 0:01:03]} (58. Qe5+ $1 $11 Kf3 59. Qd5+ Ke3 60. Qe5+ Kd3 61. Qd6+ Ke3 62. Qe6+ Kd2 63. Qd6+ Kxc3 64. Qf6+ Kc2 65. Qxg6+ Kd2 66. Qh6+ Kd1 67. g5 Qd4+ 68. Kg2) 58... Kxh3 {[%emt 0:00:20]} 59. Qxg6 $2 {[%emt 0:00:53]} (59. Qd3+ $19 Kh4 60. Kf1) 59... Qg2# {[%emt 0:00:37]} 0-1

[Event "FIDE WCCC U10 2018"]
[Site "Santiago de Compostela"]
[Date "2018.11.13"]
[Round "9"]
[White "Bialiauski, Artsiom"]
[Black "Sosa Costa, Leonardo"]
[Result "1-0"]
[ECO "E61"]
[WhiteElo "1791"]
[BlackElo "1945"]
[Annotator "NA RC"]
[PlyCount "81"]
[EventDate "2018.11.04"]
[EventType "swiss"]
[EventCountry "ESP"]
[SourceTitle "playchess.com"]
[Source "ChessBase"]
[SourceQuality "1"]
[TimeControl "40/5400+30:1800+30"]

{[%evp 8,79,50,32767,32767,11,18,-8,11,16,24,0,36,11,70,48,44,48,52,51,57,-15,0,12,23,0,32767,32767,32767,32767,-15,32767,32767,32767,32767,32767,32767,0,32767,32767,-1,32767,-134,-128,32767,-176,32767,32767,-181,32767,-176,-235,-222,32767,32767,32767,32767,32767,32767,32767,32767,32767,32767,-585,-672,-625,32767,32767,1094,32767,12842,12843,29971,29976]} 1. d4 {[%emt 0:00:00]} Nf6 {[%emt 0:00:00]} 2. c4 {[%emt 0:00:17]} g6 {[%emt 0:00:14]} 3. Nc3 {[%emt 0:00:21]} Bg7 {[%emt 0:00:23]} 4. Bg5 {[%emt 0:02:47]} O-O {[%emt 0:01:14]} 5. e3 {[%emt 0:02:23]} d6 {[%emt 0:01:50]} 6. Be2 {[%emt 0:00:26]} c5 {[%emt 0:02:05]} 7. d5 {[%emt 0:04:09]} Na6 {[%emt 0:01:01]} 8. Nf3 {[%emt 0:03:07]} Nc7 {[%emt 0:01:09]} 9. O-O {[%emt 0:01:05] LiveBook: 6 Games E61: King's Indian: Early deviations for White, including Smyslov System} a6 {[%emt 0:02:04]} (9... h6 10. Bh4 g5 11. Bg3 Nh5 12. Qc2 f5 13. Nd2 Qe8 14. Rae1 Bd7 15. f4 Nxg3 16. hxg3 g4 {1-0 (65) Melkumyan,H (2640)-Meskovs,N (2469) Warsaw 2016}) 10. a4 {[%emt 0:01:28]} b6 {[%emt 0:01:06]} (10... h6 $11 11. Bxf6 Bxf6) 11. Nd2 {[%emt 0:03:31]} Rb8 {[%emt 0:04:58]} 12. e4 {[%emt 0:06:52]} e6 $146 {[%emt 0:07:23]} ({Predecessor:} 12... h6 13. Bh4 e5 14. dxe6 Nxe6 15. Nb3 Bb7 {1-0 (39) Slipak,S (2510)-Seminara,J (2320) Buenos Aires 1998}) 13. f4 {[%emt 0:06:22]} Qd7 {[%emt 0:06:05]} 14. Nf3 {[%emt 0:12:47]} (14. Re1 $14) 14... exd5 {[%emt 0:03:12]} 15. cxd5 {[%emt 0:02:07]} Re8 {[%emt 0:00:55]} 16. Qd3 {[%emt 0:18:47]} b5 {[%emt 0:11:01]} 17. e5 {[%emt 0:07:19]} dxe5 {[%emt 0:04:32]} 18. Bxf6 {[%emt 0:00:17]} c4 {[%emt 0:06:45]} 19. Qd2 {[%emt 0:06:49]} Bxf6 {[%emt 0:00:20]} 20. Ne4 {[%emt 0:01:55]} Bg7 {[%emt 0:14:00]} 21. d6 {[%emt 0:00:17]} Ne6 {[%emt 0:01:55]} 22. Nxe5 {[%emt 0:05:26]} Qa7+ {[%emt 0:01:05]} 23. Kh1 {[%emt 0:00:21]} Qd4 {[%emt 0:10:07]} 24. Nc6 {[%emt 0:10:16]} Qxd2 {[%emt 0:00:51]} 25. Nxd2 {[%emt 0:00:04]} Rb6 {[%emt 0:01:15]} 26. axb5 {[%emt 0:00:43]} axb5 {[%emt 0:01:10]} 27. Ne7+ {[%emt 0:00:54]} Kf8 {[%emt 0:00:05]} 28. f5 {[%emt 0:01:31] [#]} gxf5 $1 {[%emt 0:09:47]} 29. Nxf5 {[%emt 0:00:05]} Bxb2 {[%emt 0:01:12]} 30. Ra7 {[%emt 0:00:01]} Rb7 {[%emt 0:03:16]} 31. Rxb7 {[%emt 0:01:51]} Bxb7 {[%emt 0:00:06]} 32. Bh5 {[%emt 0:01:02]} Nd8 {[%emt 0:01:05]} 33. Nh6 {[%emt 0:00:25]} Bd5 {[%emt 0:00:15]} 34. Nf3 {[%emt 0:00:39]} Re6 {[%emt 0:00:58]} 35. Nxf7 {[%emt 0:00:35]} Nxf7 {[%emt 0:02:27]} 36. Ng5 {[%emt 0:00:29]} Re2 {[%emt 0:00:46]} 37. Bxe2 {[%emt 0:00:11]} c3 {[%emt 0:00:51]} (37... Ke8 $142 38. Nxf7 Kd7) 38. Nxf7 {[%emt 0:00:22]} Bxf7 {[%emt 0:00:38]} 39. d7 {[%emt 0:00:07]} Ke7 {[%emt 0:00:32] [#]} 40. Rxf7+ {[%emt 0:00:00]} Kd8 {[%emt 0:00:00]} 41. Bxb5 1-0

[Event "FIDE WCCC U10 2018"]
[Site "Santiago de Compostela"]
[Date "2018.11.13"]
[Round "9"]
[White "Salinas Tomas, Daniel"]
[Black "Vetokhin, Savva"]
[Result "1/2-1/2"]
[ECO "C03"]
[WhiteElo "1772"]
[BlackElo "1874"]
[Annotator "NA RC"]
[PlyCount "116"]
[EventDate "2018.11.04"]
[EventType "swiss"]
[EventCountry "ESP"]
[SourceTitle "playchess.com"]
[Source "ChessBase"]
[SourceQuality "1"]
[TimeControl "40/5400+30:1800+30"]

{[%evp 12,116,35,32767,32767,32767,32767,32767,32767,39,32767,117,134,160,115,55,65,62,62,58,105,74,68,77,73,77,139,-37,147,150,32767,32767,32767,32767,251,220,217,200,32767,32767,32767,32767,165,137,32767,32767,32767,32767,32767,32767,32767,110,32767,32767,114,32767,32767,32767,32767,32767,32767,77,164,158,166,224,32767,32767,172,32767,32767,117,262,174,277,32767,644,32767,32767,32767,716,32767,32767,1286,32767,991,32767,32767,32767,0,0,32767,32767,0,0,32767,32767,32767,32767,0,32767,0,32767,32767,32767,0,0]} 1. e4 e6 2. d4 d5 3. Nd2 a6 4. Ngf3 Nf6 5. e5 Nfd7 6. Bd3 c5 7. c3 Nc6 8. O-O {C06: French Tarrasch: 3...Nf6 4 e5 Nfd7 5 Bd3 main lines} g5 9. Nb3 (9. dxc5 g4 10. Nd4 Ndxe5 11. N2b3 Nxd3 12. Qxd3 e5 13. Re1 Bg7 14. Nxc6 bxc6 15. Nd4 Qf6 {½-½ (43) Sokolov,I (2625)-Bauer,C (2630) Maastricht 2017}) 9... h6 10. Nxc5 {LiveBook: 6 Games} Bxc5 $146 ({Predecessor:} 10... Nxc5 11. dxc5 Bxc5 12. Qe2 Qc7 13. Re1 Bd7 14. Be3 Bf8 15. Bd4 Bg7 {0-1 (57) Daulyte,D (2395)-Socko,M (2463) Sochi 2015}) 11. dxc5 g4 12. Nd4 Ncxe5 13. Nb3 (13. Bc2 $16) 13... h5 14. Re1 Qf6 15. Be3 Rg8 16. Bd4 Qg5 17. Kh1 h4 18. Qe2 f6 (18... Nc6 $14) 19. Qe3 $2 (19. Bc2 $16) 19... Qg7 $2 ({Black should play} 19... Qxe3 $11 20. Rxe3 Nxd3 21. Rxd3 Kf7) 20. c4 g3 21. fxg3 hxg3 22. h3 Qg5 23. cxd5 Qxe3 24. Rxe3 exd5 25. Bf5 Rg5 26. Bxd7+ Kxd7 (26... Bxd7 $16 27. Rf1 Ke7) 27. Rae1 Ke6 28. Nd2 Kf7 29. Bxe5 Rxe5 30. Rxe5 fxe5 31. Rxe5 Be6 32. Rg5 d4 33. a3 Rc8 34. b4 b6 35. Ne4 bxc5 36. Nxc5 Rd8 (36... Rg8 $1 $14 37. Nxe6 Re8) 37. Rxg3 Bf5 38. Rf3 ({Not} 38. Nxa6 $2 d3 $19) 38... Kg6 39. Rf2 d3 40. Rd2 Kf6 41. Kg1 Ke5 $2 (41... a5 $16 42. bxa5 Rd5) 42. g4 ({And not} 42. Nxa6 Kd4 $11) 42... Bh7 (42... Be4 $16 43. Kf2 (43. Nxa6 Rh8 $14) 43... Rf8+ 44. Ke1 Rf3) 43. Kf2 Kd4 $2 (43... a5 44. Ke3 axb4) 44. Rxd3+ Bxd3 45. Ne6+ Kc3 46. Nxd8 Kb3 47. Nb7 Kxa3 48. Nc5 Bc4 49. Nxa6 Bxa6 50. g5 $2 (50. h4 {mates} Ka4 51. h5 Bd3 52. Ke3 Bc2 53. g5 Bd1 54. h6 Bc2 55. Kf4) 50... Kxb4 51. Ke3 Kc5 52. Kf4 Kd6 53. Kf5 Ke7 54. Kg6 Kf8 55. h4 Be2 56. Kh7 Bh5 57. Kh6 Be8 58. h5 Bxh5 $11 1/2-1/2

[Event "FIDE WCCC U10 2018"]
[Site "Santiago de Compostela"]
[Date "2018.11.13"]
[Round "9"]
[White "Todev, Simeon"]
[Black "Kadam Om Manish"]
[Result "0-1"]
[ECO "B90"]
[WhiteElo "1767"]
[BlackElo "2025"]
[Annotator "NA RC"]
[PlyCount "86"]
[EventDate "2018.11.04"]
[EventType "swiss"]
[EventCountry "ESP"]
[SourceTitle "playchess.com"]
[Source "ChessBase"]
[SourceQuality "1"]
[TimeControl "40/5400+30:1800+30"]

{[%evp 14,86,22,32767,28,32767,37,32767,18,32767,31,-54,-20,3,-14,-66,37,16,8,9,31,-62,19,-145,-108,-155,-151,-391,-423,-434,-414,-379,32767,-328,-342,-331,-420,-460,-382,-349,-377,-379,32767,32767,32767,-284,-223,32767,32767,-350,-256,-275,-283,32767,-279,32767,32767,32767,32767,32767,32767,32767,-978,-955,-1000,32767,32767,-1508,32767,32767,-29980,-29970,-29983,-29989,-29990]} 1. e4 {[%emt 0:00:09]} c5 {[%emt 0:00:00]} 2. Nf3 {[%emt 0:00:10]} d6 {[%emt 0:00:00]} 3. d4 {[%emt 0:00:04]} cxd4 {[%emt 0:00:00]} 4. Nxd4 {[%emt 0:00:04]} Nf6 {[%emt 0:00:07]} 5. Nc3 {[%emt 0:00:06]} a6 {[%emt 0:00:06]} 6. Be3 {[%emt 0:00:19]} e5 {[%emt 0:02:21]} 7. Nb3 {[%emt 0:00:11]} Be7 {[%emt 0:00:27]} 8. f3 {[%emt 0:00:32]} Be6 {[%emt 0:00:13]} 9. Qd2 {[%emt 0:00:42]} Nbd7 {[%emt 0:00:12]} 10. g4 {[%emt 0:00:28]} O-O {[%emt 0:00:52] B90: Sicilian Najdorf: Unusual White 6th moves, 6 Be3 Ng4 and 6 Be3 e5} (10... b5 11. g5 b4 12. Ne2 Nh5 13. Ng3 Nf4 14. Bxf4 exf4 15. Nh5 O-O 16. h4 Ne5 17. Qxf4 Qc7 18. O-O-O Rfc8 {1-0 (34) Aronian,L (2767)-Vachier Lagrave,M (2779) Saint Louis 2018}) 11. h4 {[%emt 0:00:37]} b5 {[%emt 0:06:08] LiveBook: 3 Games} 12. h5 {[%emt 0:02:22]} Nb6 {[%emt 0:09:29]} 13. g5 {[%emt 0:02:02]} Nfd7 {[%emt 0:00:47]} 14. O-O-O $146 {[%emt 0:04:03]} ({Predecessor:} 14. f4 Nc4 15. Bxc4 bxc4 16. Nc1 exf4 17. Bxf4 Ne5 {1-0 (33) Messaoudi,E (1840)-Khalef,E (2048) Algiers 2015}) 14... b4 {[%emt 0:07:34]} (14... Nc4 $17 15. Bxc4 bxc4) 15. Nd5 {[%emt 0:01:46]} Bxd5 {[%emt 0:07:04]} 16. exd5 {[%emt 0:00:05]} a5 $1 {[%emt 0:12:32]} 17. g6 {[%emt 0:04:28] [#]} (17. Kb1 $11) 17... Nf6 {[%emt 0:02:45]} ({Black should try} 17... a4 $1 $17 {[%cal Ra4b3]} 18. gxh7+ Kh8) 18. gxh7+ {[%emt 0:02:47] [#]} (18. Nc5 $11 dxc5 19. d6) 18... Kh8 $1 {[%emt 0:00:20]} 19. Bxb6 {[%emt 0:01:35]} (19. Rg1 $15) 19... Qxb6 {[%emt 0:00:01]} 20. Bd3 $2 {[%emt 0:01:17]} (20. Qd3 $17) 20... a4 {[%emt 0:04:55]} 21. Na1 {[%emt 0:00:43]} a3 {[%emt 0:00:19]} 22. Bc4 {[%emt 0:25:41]} Nxh7 {[%emt 0:13:08]} 23. h6 {[%emt 0:40:24]} g6 {[%emt 0:03:20]} 24. Rdg1 {[%emt 0:07:25]} axb2+ {[%emt 0:01:34]} 25. Kxb2 {[%emt 0:00:08]} Rfc8 {[%emt 0:00:40]} 26. Bb3 {[%emt 0:00:55]} Bf6 {[%emt 0:03:15]} 27. Kb1 {[%emt 0:00:41]} Rc3 {[%emt 0:01:55]} 28. Rg4 {[%emt 0:02:29]} Rxf3 {[%emt 0:05:40]} 29. Rxb4 {[%emt 0:02:41]} Qf2 {[%emt 0:00:36]} 30. Qxf2 {[%emt 0:01:24]} Rxf2 {[%emt 0:00:01]} 31. Rb6 {[%emt 0:00:11]} e4 {[%emt 0:00:24]} 32. Bc4 {[%emt 0:07:42]} Be5 {[%emt 0:03:40]} 33. Nb3 {[%emt 0:03:11]} Ng5 {[%emt 0:01:25]} 34. Rf1 {[%emt 0:01:13]} Rh2 {[%emt 0:01:34]} 35. Bb5 {[%emt 0:02:40]} e3 {[%emt 0:01:22]} 36. Re1 {[%emt 0:02:19]} Ne4 {[%emt 0:00:29]} 37. a4 {[%emt 0:05:48]} Nc3+ {[%emt 0:00:11]} 38. Kc1 {[%emt 0:00:07]} Nxb5 {[%emt 0:00:30]} 39. axb5 {[%emt 0:01:30]} Bc3 {[%emt 0:00:06]} 40. Ra6 {[%emt 0:00:00]} Re8 {[%emt 0:00:00]} 41. Rg1 {[%emt 0:14:49]} e2 {[%emt 0:03:39]} 42. Kb1 {[%emt 0:00:19]} Rf2 {[%emt 0:00:27]} 43. Nc1 {[%emt 0:00:51]} Rf1 {[%emt 0:00:26]} 0-1

[Event "FIDE WCCC U10 2018"]
[Site "Santiago de Compostela"]
[Date "2018.11.13"]
[Round "9"]
[White "Nemsadze, Daviti"]
[Black "Atanasov, Anthony"]
[Result "0-1"]
[ECO "A16"]
[WhiteElo "1762"]
[BlackElo "1916"]
[Annotator "NA RC"]
[PlyCount "58"]
[EventDate "2018.11.04"]
[EventType "swiss"]
[EventCountry "ESP"]
[SourceTitle "playchess.com"]
[Source "ChessBase"]
[SourceQuality "1"]
[TimeControl "40/5400+30:1800+30"]

{[%evp 15,50,49,32767,32767,41,31,31,29,36,9,19,5,13,7,31,18,32767,8,14,4,21,32767,32767,-174,32767,-543,-597,-539,-583,-544,-555,-579,-593,-608,-620,-687,-714]} 1. c4 {[%emt 0:00:05]} Nf6 {[%emt 0:00:00]} 2. Nc3 {[%emt 0:00:07]} d5 {[%emt 0:00:00]} 3. cxd5 {[%emt 0:00:06]} Nxd5 {[%emt 0:00:00]} 4. g3 {[%emt 0:00:04]} g6 {[%emt 0:00:00]} 5. Bg2 {[%emt 0:00:04]} Nxc3 {[%emt 0:00:00]} 6. bxc3 {[%emt 0:00:05]} c5 {[%emt 0:00:34]} 7. Rb1 {[%emt 0:00:10]} Nd7 {[%emt 0:02:10]} 8. Qa4 {[%emt 0:04:08]} Qc7 {[%emt 0:04:39]} 9. Nf3 {[%emt 0:03:18]} Bg7 {[%emt 0:02:16]} 10. O-O {[%emt 0:00:44]} O-O {[%emt 0:05:30]} 11. d4 {LiveBook: 5 Games} Nb6 {[%emt 0:18:50] A34: Englische Eröffnung (Symmetrische Variante)} 12. Qa5 {[%emt 0:02:41]} (12. Qa3 cxd4 13. cxd4 Bf5 14. Bf4 Qc4 15. e4 Be6 16. Qxe7 Qa6 17. Be5 Bc4 18. Bxg7 Kxg7 19. Rfe1 {1-0 (38) Zhou,J (2636)-Melkumyan,H (2600) Martuni 2011}) 12... cxd4 {[%emt 0:09:52]} 13. cxd4 {[%emt 0:00:10]} Bf5 {[%emt 0:09:48]} 14. Bf4 {[%emt 0:11:36]} Qd7 $146 {[%emt 0:11:05]} ({Vorgänger:} 14... Qc2 15. Rbc1 Qxe2 16. Rfe1 Qb2 17. Rxe7 Rac8 18. Rxc8 Nxc8 19. Rc7 {½-½ (34) Petran,P (2336)-Palecek,P (2216) Zvolen 2000}) 15. Rbc1 {[%emt 0:00:45]} Be4 {[%emt 0:12:17]} 16. Rfd1 {[%emt 0:14:16]} Nd5 {[%emt 0:13:06]} 17. Ne5 {[%emt 0:14:48]} Bxe5 $1 {[%emt 0:00:40]} 18. dxe5 {[%emt 0:00:13]} Bxg2 {[%emt 0:00:14]} 19. Bh6 {[%emt 0:05:05]} Qh3 {[%emt 0:02:17]} 20. Bxf8 $2 {[%emt 0:00:08]} (20. Qd2 {nothing else works.} Rfc8 21. f3) 20... Be4 {[%emt 0:00:19]} 21. f3 {[%emt 0:02:32]} Ne3 {[%emt 0:00:02]} 22. Kf2 {[%emt 0:00:17]} Nxd1+ {[%emt 0:00:02]} 23. Rxd1 {[%emt 0:00:05]} Qxh2+ {[%emt 0:00:21]} (23... Kxf8 $2 24. Rd8+ Rxd8 25. Qxd8+ Kg7 26. fxe4 $19) 24. Ke3 {[%emt 0:00:07]} Rxf8 {[%emt 0:05:03]} 25. fxe4 $19 {[%emt 0:00:59]} Qxg3+ {[%emt 0:00:23]} 26. Kd4 {[%emt 0:00:25]} b6 {[%emt 0:00:15]} 27. Qd5 {[%emt 0:00:04]} Rc8 {[%emt 0:01:15]} 28. Rd3 {[%emt 0:02:30]} Qg1+ {[%emt 0:00:14]} 29. Re3 {[%emt 0:00:17]} Qa1+ 0-1

[Event "FIDE WCCC U10 2018"]
[Site "Santiago de Compostela"]
[Date "2018.11.13"]
[Round "9"]
[White "Anand, Batsukh"]
[Black "Ning, Eric"]
[Result "1-0"]
[ECO "B31"]
[WhiteElo "1746"]
[BlackElo "1870"]
[Annotator "NA RC"]
[PlyCount "69"]
[EventDate "2018.11.04"]
[EventType "swiss"]
[EventCountry "ESP"]
[SourceTitle "playchess.com"]
[Source "ChessBase"]
[SourceQuality "1"]
[TimeControl "40/5400+30:1800+30"]

{[%evp 12,64,20,15,14,7,22,13,39,-17,0,-2,10,0,15,-31,-41,-44,-15,-21,32767,32767,32767,-12,32767,32767,32767,32767,20,32767,76,32767,32767,22,32767,32767,222,32767,32767,32767,32767,252,32767,32767,32767,32767,392,507,749,767,788,32767,1892,32767,1122]} 1. e4 c5 {[%emt 0:00:00]} 2. Nf3 {[%emt 0:02:39]} Nc6 {[%emt 0:00:24]} 3. Bb5 {[%emt 0:01:41]} g6 {[%emt 0:00:50]} 4. Bxc6 {[%emt 0:01:42]} bxc6 {[%emt 0:00:48]} 5. O-O {[%emt 0:01:05]} Bg7 {[%emt 0:00:24]} 6. Re1 {[%emt 0:01:47]} Nh6 {[%emt 0:00:36] LiveBook: 674 Games} 7. e5 {[%emt 0:10:44] B31: Sicilian: 2...Nc6 3 Bb5 g6} (7. c3 O-O 8. h3 f5 9. e5 Nf7 10. d3 d6 11. Bf4 Ba6 12. Na3 Rb8 13. Qd2 dxe5 14. Nxe5 Nxe5 15. Bxe5 Bxe5 16. Rxe5 Qxd3 {1-0 (50) Amin,B (2686)-Guseinov,G (2667) Hoogeveen 2018}) 7... Nf5 {[%emt 0:01:44]} 8. d3 {[%emt 0:00:54]} O-O {[%emt 0:00:22]} 9. Nc3 {[%emt 0:01:52]} d6 {[%emt 0:02:00]} 10. exd6 {[%emt 0:06:06]} exd6 {[%emt 0:00:33]} 11. Ne4 {[%emt 0:05:20]} h6 $146 {[%emt 0:08:17]} ({Predecessor:} 11... Re8 12. c3 Be6 13. Bg5 f6 14. Bd2 {0-1 (46) Slinger,T (1911)-Lung,L (2090) Gibraltar 2017}) 12. c3 {[%emt 0:04:34]} Re8 {[%emt 0:04:47]} 13. g4 {[%emt 0:09:52]} Ne7 {[%emt 0:07:27]} 14. g5 {[%emt 0:14:55]} h5 {[%emt 0:05:09]} 15. Bf4 {[%emt 0:01:24]} Nf5 {[%emt 0:01:43]} 16. Qa4 {[%emt 0:02:40]} Bb7 {[%emt 0:02:14]} 17. Rad1 {[%emt 0:02:45]} Re6 {[%emt 0:01:57]} 18. Re2 {[%emt 0:08:31]} Qe7 {[%emt 0:06:07]} 19. Rde1 {[%emt 0:00:35]} Kh8 {[%emt 0:07:50]} 20. Ng3 {[%emt 0:02:48]} Nxg3 {[%emt 0:01:29]} (20... Rxe2 $11 {hält das Gleichgewicht.} 21. Rxe2 Qd7) 21. Rxe6 {[%emt 0:00:23]} fxe6 {[%emt 0:00:07]} 22. hxg3 {[%emt 0:01:16]} (22. Nh4 $16 Kh7 23. Bxg3) 22... Qd7 {[%emt 0:01:42]} 23. Nh4 {[%emt 0:00:39]} e5 {[%emt 0:02:41]} 24. Nxg6+ {[%emt 0:01:18]} Kg8 {[%emt 0:00:08]} 25. Be3 {[%emt 0:02:01]} Qe6 {[%emt 0:00:50] [#]} 26. Nh4 $1 {[%emt 0:01:28]} Qd5 {[%emt 0:04:09]} 27. Qe4 {[%emt 0:02:35]} Rf8 {[%emt 0:01:40]} 28. Qg6 {[%emt 0:00:53]} Qf7 {[%emt 0:10:24]} 29. Qxd6 {[%emt 0:01:46]} Qxa2 {[%emt 0:01:11]} (29... Re8 $142 30. g6 Qd5) 30. Bxc5 {[%emt 0:02:05]} Qf7 {[%emt 0:03:01]} 31. g6 {[%emt 0:00:52]} Qb3 {[%emt 0:03:34]} 32. c4 {[%emt 0:01:22]} Bc8 $18 {[%emt 0:09:35]} 33. Qc7 {[%emt 0:00:43]} Qb7 {[%emt 0:04:38]} 34. Qxb7 {[%emt 0:00:19]} Bxb7 {[%emt 0:00:01]} 35. Bxf8 {[%emt 0:00:22]} 1-0